bitfinex/quotes_SOLUSD_20250316
["timestamp","ask_amount","ask_price","bid_price","bid_amount"]
[1742083202028,0.03,136.2,136.11,18.933972]
[1742083202225,0.03,136.2,136.18,13.48614944]
[1742083203738,0.03,136.2,136.19,13.48614944]
[1742083205139,0.03,136.2,136.19,32.1357983]
[1742083205337,0.03,136.2,136.19,92.28039606]
[1742083205544,0.03,136.23,136.19,94.1551192]
[1742083205744,0.03,136.24,136.22,32.42012144]
[1742083205921,0.03,136.25,136.23,18.933972]
[1742083206120,0.03,136.25,136.24,92.5647192]
[1742083206325,0.03,136.25,136.24,38.3357983]
[1742083206920,0.03,136.25,136.24,45.6756983]
[1742083207343,0.03,136.25,136.24,105.74695025]
[1742083207544,0.03,136.25,136.24,45.6756983]
[1742083207720,0.03,136.25,136.24,38.3357983]
[1742083208035,0.03,136.25,136.24,105.80415862]
[1742083208426,0.03,136.25,136.24,99.9046192]
[1742083209044,0.03,136.25,136.24,101.4950192]
[1742083209535,0.03,136.25,136.24,101.9950192]
[1742083209737,0.03,136.27,136.25,18.933972]
[1742083209943,0.03,136.27,136.26,32.1357983]
[1742083210141,0.03,136.27,136.26,86.3647192]
[1742083210324,8.58273736,136.28,136.27,19.433972]
[1742083210653,8.58273736,136.28,136.27,86.3647192]
[1742083210952,8.58273736,136.28,136.27,93.7030192]
[1742083211147,8.58273736,136.28,136.27,39.75842144]
[1742083211550,0.03,136.29,136.27,39.75842144]
[1742083211856,0.03,136.29,136.28,32.1357983]
[1742083212228,0.03,136.3,136.29,18.64964886]
[1742083212427,0.03,136.3,136.29,38.3557983]
[1742083213133,0.03,136.3,136.29,46.47732144]
[1742083213323,0.03,136.33,136.31,18.64964886]
[1742083213556,0.03,136.33,136.32,86.3647192]
[1742083215151,0.03,136.33,136.32,93.7003192]
[1742083217151,82.2,136.38,136.33,18.64964886]
[1742083217343,82.2,136.38,136.37,13.48614944]
[1742083218353,89.5324,136.38,136.35,13.48614944]
[1742083218753,82.2,136.37,136.34,19.70614944]
[1742083218948,83.5750615,136.37,136.34,19.70614944]
[1742083219538,90.9080615,136.37,136.34,13.48614944]
[1742083219960,89.533,136.37,136.35,13.48614944]
[1742083220257,1.37510658,136.36,136.34,13.48614944]
[1742083220560,82.2,136.35,136.33,13.48614944]
[1742083220761,82.2,136.34,136.33,13.48614944]
[1742083223863,82.2,136.38,136.34,18.64964886]
[1742083224067,82.2,136.38,136.37,13.48614944]
[1742083232650,82.2,136.38,136.36,6.22]
[1742083233848,89.5324,136.38,136.36,6.22]
[1742083234161,82.2,136.38,136.37,13.48614944]
[1742083237077,82.2,136.38,136.36,19.70614944]
[1742083237581,89.5325,136.38,136.36,6.22]
[1742083238374,89.5325,136.38,136.35,13.48614944]
[1742083238880,89.5325,136.38,136.35,13.54914944]
[1742083239179,89.5625,136.38,136.35,13.54914944]
[1742083240182,82.23,136.38,136.36,13.48614944]
[1742083241193,82.2,136.37,136.36,13.48614944]
[1742083242595,7.3625,136.38,136.35,0.063]
[1742083242790,19.77814944,136.36,136.35,0.063]
[1742083243093,21.34264944,136.36,136.35,0.063]
[1742083243613,21.34264944,136.36,136.29,13.48614944]
[1742083243895,13.48614944,136.31,136.26,19.72614944]
[1742083244099,1.37590609,136.3,136.26,19.72614944]
[1742083244588,8.71300609,136.3,136.26,19.72614944]
[1742083244791,13.48614944,136.28,136.23,13.48614944]
[1742083244994,14.86244036,136.27,136.22,19.72614944]
[1742083245707,1.37629092,136.27,136.23,13.48614944]
[1742083246383,1.37629092,136.27,136.23,21.05566431]
[1742083246996,2.94070167,136.29,136.25,21.05566431]
[1742083248974,21.05566431,136.27,136.22,27.29566431]
[1742083249174,1.37636899,136.26,136.22,27.29566431]
[1742083249477,82.2,136.25,136.21,27.35866431]
[1742083249677,83.57653249,136.24,136.21,27.35866431]
[1742083250285,83.57653249,136.24,136.21,21.11866431]
[1742083250897,1.5645,136.22,136.21,0.063]
[1742083251094,2.94125614,136.22,136.21,0.063]
[1742083252296,1.37675614,136.22,136.21,0.063]
[1742083252679,1.37675614,136.22,136.21,21.11866431]
[1742083253798,1.37675614,136.22,136.21,0.063]
[1742083254898,1.37675614,136.22,136.21,21.11866431]
[1742083255089,6.292,136.23,136.21,21.11866431]
[1742083255295,1.376638,136.26,136.22,21.05566431]
[1742083255492,82.2,136.25,136.22,21.05566431]
[1742083255697,1.37656183,136.24,136.22,21.05566431]
[1742083255884,1.37656183,136.24,136.21,21.11866431]
[1742083256385,1.37656183,136.24,136.21,0.063]
[1742083257413,1.37656183,136.24,136.21,7.4045]
[1742083258091,1.37656183,136.24,136.22,21.05566431]
[1742083258289,83.57643398,136.25,136.23,21.05566431]
[1742083258492,82.2,136.25,136.24,21.05566431]
[1742083258677,7.60470883,136.27,136.24,21.05566431]
[1742083259597,7.60470883,136.27,136.25,7.3394]
[1742083260401,7.60470883,136.27,136.22,27.31566431]
[1742083260402,28.66037314,136.27,136.22,27.31566431]
[1742083260784,35.99877314,136.27,136.22,27.31566431]
[1742083261601,21.05566431,136.25,136.21,0.063]
[1742083261804,22.43234861,136.24,136.21,0.063]
[1742083261992,1.3766843,136.24,136.21,0.063]
[1742083265609,1.3766843,136.24,136.23,7.3405]
[1742083265797,1.37664179,136.25,136.23,28.39616431]
[1742083266498,1.37640695,136.26,136.24,21.05566431]
[1742083266695,82.2,136.25,136.24,21.05566431]
[1742083267813,82.2,136.25,136.24,28.39556431]
[1742083268408,82.2,136.25,136.24,7.3399]
[1742083268610,82.2,136.25,136.23,28.39596431]
[1742083268818,1.37634818,136.24,136.21,21.11866431]
[1742083268995,83.57634818,136.24,136.21,21.11866431]
[1742083269309,83.57634818,136.24,136.21,7.4045]
[1742083270117,83.57634818,136.24,136.21,28.46016431]
[1742083270623,82.2,136.24,136.22,21.05566431]
[1742083270792,82.2,136.24,136.23,21.05566431]
[1742083272117,82.2,136.24,136.23,28.39616431]
[1742083278417,82.2,136.27,136.23,65.68143631]
[1742083278629,82.2,136.27,136.26,42.11132862]
[1742083279326,44.934,136.32,136.27,0.28432314]
[1742083279525,44.934,136.32,136.31,21.05566431]
[1742083279712,44.934,136.32,136.31,27.31566431]
[1742083279914,44.934,136.32,136.31,34.65186431]
[1742083280112,44.934,136.32,136.31,6.26]
[1742083280913,44.934,136.32,136.31,27.31566431]
[1742083284938,44.934,136.32,136.31,6.26]
[1742083285132,44.934,136.32,136.31,27.31566431]
[1742083285517,44.934,136.32,136.31,6.26]
[1742083287338,59.9115,136.32,136.28,21.05566431]
[1742083287549,46.30978418,136.31,136.28,21.05566431]
[1742083288036,46.30978418,136.31,136.24,7.3394]
[1742083288037,7.3367,136.3,136.24,7.3394]
[1742083288229,1.37593854,136.29,136.26,21.05566431]
[1742083288626,8.7126329,136.3,136.26,21.05566431]
[1742083289029,44.934,136.29,136.23,7.3403]
[1742083289218,1.37610714,136.28,136.24,27.33566431]
[1742083289645,44.934,136.27,136.24,27.33566431]
[1742083290418,46.31021851,136.26,136.24,6.28]
[1742083290737,46.31021851,136.26,136.22,21.11866431]
[1742083291533,53.95211851,136.26,136.22,21.11866431]
[1742083291768,75.00778282,136.26,136.22,0.063]
[1742083292458,44.934,136.25,136.22,0.063]
[1742083292628,22.43232703,136.24,136.22,0.063]
[1742083292828,44.934,136.23,136.22,0.063]
[1742083293032,44.934,136.23,136.22,21.11866431]
[1742083293339,44.934,136.23,136.22,34.75966431]
[1742083298049,44.934,136.28,136.22,72.04623631]
[1742083298244,44.934,136.28,136.27,21.05566431]
[1742083300654,44.934,136.28,136.26,21.05566431]
[1742083301335,44.934,136.28,136.27,21.05566431]
[1742083303352,44.934,136.28,136.27,28.39396431]
[1742083304144,44.934,136.28,136.27,34.67396431]
[1742083304336,44.934,136.31,136.27,53.01986431]
[1742083304534,44.934,136.3,136.27,31.9642]
[1742083305743,44.934,136.3,136.29,21.05566431]
[1742083307156,44.934,136.3,136.29,28.39286431]
[1742083309064,44.934,136.3,136.29,21.05566431]
[1742083310041,44.934,136.3,136.27,27.33566431]
[1742083310246,1.37595214,136.29,136.27,27.33566431]
[1742083311235,1.37595214,136.29,136.27,27.39866431]
[1742083311639,46.33995608,136.3,136.28,21.05566431]
[1742083312271,44.964,136.3,136.29,21.05566431]
[1742083313667,44.964,136.3,136.28,21.05566431]
[1742083314343,44.934,136.29,136.28,21.05566431]
[1742083314954,44.934,136.29,136.28,28.39346431]
[1742083316267,44.934,136.29,136.28,21.05566431]
[1742083317641,44.934,136.29,136.27,27.39866431]
[1742083320441,1.37597462,136.28,136.27,6.343]
[1742083320651,1.37597462,136.28,136.27,0.063]
[1742083322169,8.71377462,136.28,136.27,0.063]
[1742083322371,15.02077462,136.28,136.27,0.063]
[1742083322668,37.97886207,136.28,136.27,0.063]
[1742083322882,20.0,136.25,136.22,0.063]
[1742083323047,21.05566431,136.23,136.22,0.063]
[1742083323240,28.98076431,136.23,136.22,0.063]
[1742083323953,47.91473631,136.23,136.22,0.063]
[1742083324247,55.25523631,136.23,136.22,0.063]
[1742083324764,18.933972,136.22,136.21,0.063]
[1742083324949,41.36688765,136.22,136.21,0.063]
[1742083325153,22.43291565,136.22,136.21,0.063]
[1742083325550,1.37725134,136.22,136.21,0.063]
[1742083326053,9.30191317,136.23,136.21,21.11866431]
[1742083327290,1.37665168,136.22,136.21,21.11866431]
[1742083327759,7.9251,136.23,136.21,28.46016431]
[1742083327962,1.37660336,136.22,136.21,21.11866431]
[1742083328153,7.9251,136.23,136.21,21.11866431]
[1742083328470,7.9251,136.23,136.21,28.46016431]
[1742083328767,6.307,136.23,136.21,28.46016431]
[1742083328974,6.307,136.23,136.21,21.11866431]
[1742083329159,6.307,136.23,136.21,28.46016431]
[1742083329556,1.37659727,136.22,136.21,21.11866431]
[1742083330174,6.307,136.23,136.21,28.46026431]
[1742083332060,6.307,136.23,136.21,21.11866431]
[1742083332273,1.37662515,136.22,136.21,0.063]
[1742083333959,22.43228946,136.22,136.21,0.063]
[1742083334168,29.77328946,136.22,136.21,0.063]
[1742083334381,1.37662515,136.22,136.21,0.063]
[1742083335062,1.376794,136.24,136.21,21.11866431]
[1742083336083,1.3766036,136.23,136.21,21.11866431]
[1742083336262,1.37659212,136.25,136.21,21.11866431]
[1742083338489,8.71599212,136.25,136.21,21.11866431]
[1742083338982,29.77165643,136.25,136.21,0.063]
[1742083339968,39.84747474,136.24,136.21,0.063]
[1742083340175,21.05566431,136.22,136.21,0.063]
[1742083340576,28.39666431,136.22,136.21,0.063]
[1742083340782,38.79181043,136.19,136.18,0.063]
[1742083340958,18.933972,136.18,136.09,0.063]
[1742083341163,39.84747474,136.14,136.09,0.063]
[1742083341480,41.35007474,136.14,136.09,0.063]
[1742083341786,42.72795546,136.14,136.09,0.063]
[1742083342579,48.69537474,136.14,136.09,21.11866431]
[1742083342781,21.5026,136.14,136.11,21.05566431]
[1742083343175,1.5026,136.14,136.11,21.05566431]
[1742083343776,36.19816578,136.16,136.11,21.05566431]
[1742083344279,1.37790147,136.16,136.13,21.11866431]
[1742083344480,1.37747046,136.15,136.13,0.063]
[1742083345076,29.77793477,136.15,136.13,0.063]
[1742083345289,21.05566431,136.14,136.13,0.063]
[1742083345598,20.03627029,136.14,136.1,21.05566431]
[1742083345801,83.5777292,136.13,136.1,21.05566431]
[1742083346098,83.5777292,136.13,136.09,21.11866431]
[1742083347180,3.68151013,136.12,136.1,21.05566431]
[1742083347495,1.37778669,136.11,136.1,21.05566431]
[1742083347677,83.57778669,136.11,136.1,21.05566431]
[1742083347987,83.57778669,136.11,136.09,21.11866431]
[1742083348698,82.2,136.11,136.1,21.05566431]
[1742083350172,82.2,136.11,136.1,28.40316431]
[1742083352675,82.2,136.13,136.1,28.40316431]
[1742083352881,82.1,136.13,136.11,21.05566431]
[1742083354704,1.37761284,136.12,136.09,21.11866431]
[1742083355272,1.37761284,136.12,136.1,21.05566431]
[1742083355684,1.37761284,136.12,136.09,0.063]
[1742083355904,1.37761284,136.12,136.1,21.05566431]
[1742083356899,8.72411284,136.12,136.09,0.063]
[1742083357202,1.37761284,136.12,136.1,21.05566431]
[1742083358086,1.37761284,136.12,136.1,28.40306431]
[1742083358297,1.37766346,136.14,136.11,21.05566431]
[1742083358494,1.37766346,136.14,136.12,21.05566431]
[1742083359000,10.44471064,136.14,136.12,21.05566431]
[1742083359390,10.44471064,136.14,136.11,21.05566431]
[1742083360399,17.79011064,136.14,136.11,21.05566431]
[1742083360604,17.79011064,136.14,136.09,7.4108]
[1742083360605,38.84577495,136.14,136.09,21.11866431]
[1742083361605,38.84577495,136.14,136.1,0.03]
[1742083361993,0.063,136.13,136.1,0.03]
[1742083362707,9.06704718,136.12,136.1,0.03]
[1742083362888,1.37790625,136.11,136.1,0.03]
[1742083363400,8.72480625,136.11,136.1,0.03]
[1742083364493,17.79185343,136.11,136.1,0.03]
[1742083364900,57.63932817,136.11,136.1,0.03]
[1742083365102,57.78148974,136.11,136.1,0.03]
[1742083366110,48.71444256,136.11,136.1,0.03]
[1742083366305,48.57228099,136.11,136.1,0.03]
[1742083366491,27.51661668,136.11,136.1,0.03]
[1742083366892,20.16971668,136.11,136.1,0.03]
[1742083367108,82.044,136.08,136.07,21.11866431]
[1742083367402,20.16971668,136.11,136.07,21.11866431]
[1742083367607,1.37790625,136.11,136.07,21.11866431]
[1742083367908,9.09298237,136.08,136.07,21.11866431]
[1742083368590,9.09298237,136.08,136.07,0.063]
[1742083369012,9.09298237,136.09,136.07,0.063]
[1742083369311,1.37806985,136.08,136.07,0.063]
[1742083370410,10.47105222,136.08,136.07,0.063]
[1742083371702,1.37806985,136.08,136.07,0.063]
[1742083373815,10.47113682,136.09,136.07,21.11866431]
[1742083373995,10.47113682,136.09,136.08,21.05566431]
[1742083373996,9.09298237,136.09,136.08,21.05566431]
[1742083374902,10.47093959,136.11,136.08,21.05566431]
[1742083375092,10.47093959,136.11,136.09,21.05566431]
[1742083375292,10.47093959,136.11,136.07,0.063]
[1742083375506,10.47093959,136.11,136.08,21.05566431]
[1742083376103,10.47093959,136.11,136.09,21.05566431]
[1742083377115,10.47093959,136.11,136.08,21.05566431]
[1742083377622,1.37795722,136.11,136.09,21.05566431]
[1742083378815,82.2,136.1,136.09,21.05566431]
[1742083379014,83.57787616,136.1,136.09,21.05566431]
[1742083379412,82.2,136.1,136.09,21.05566431]
[1742083380320,82.2,136.1,136.08,21.05566431]
[1742083381520,82.2,136.1,136.09,21.05566431]
[1742083382218,82.2,136.1,136.09,13.5050392]
[1742083383220,82.2,136.1,136.09,20.8530392]
[1742083384120,0.063,136.12,136.09,39.2231392]
[1742083384316,0.063,136.12,136.11,21.08593031]
[1742083385303,0.063,136.12,136.11,28.43283031]
[1742083389123,0.063,136.12,136.11,21.08593031]
[1742083389503,0.063,136.12,136.11,28.43283031]
[1742083394230,1.4405111,136.12,136.08,0.03]
[1742083394412,82.2,136.11,136.1,21.08593031]
[1742083396423,82.2,136.11,136.1,28.43343031]
[1742083399636,82.2,136.11,136.1,21.08593031]
[1742083401628,0.063,136.12,136.1,21.08593031]
[1742083401828,11.26013519,136.18,136.14,62.17186062]
[1742083402009,16.4699303,136.19,136.17,21.08593031]
[1742083402214,16.4699303,136.19,136.18,48.57186062]
[1742083402729,11.49799053,136.2,136.18,48.57186062]
[1742083402928,11.49799053,136.2,136.19,42.17186062]
[1742083403619,11.49799053,136.2,136.19,42.31402219]
[1742083403823,11.49799053,136.2,136.19,49.65662219]
[1742083404430,0.063,136.22,136.2,0.28432314]
[1742083404622,0.063,136.22,136.21,21.37025345]
[1742083405813,0.063,136.22,136.21,28.71185345]
[1742083409443,0.063,136.27,136.22,0.28432314]
[1742083409624,0.063,136.27,136.24,21.08593031]
[1742083410936,0.063,136.27,136.24,42.45618376]
[1742083411120,0.063,136.27,136.24,61.10583262]
[1742083411640,0.063,136.27,136.24,68.44573262]
[1742083412017,0.063,136.27,136.24,28.71015345]
[1742083413533,0.063,136.27,136.24,21.08593031]
[1742083413933,1.43907569,136.27,136.24,21.08593031]
[1742083414943,0.063,136.27,136.24,28.42583031]
[1742083415827,0.063,136.27,136.24,49.79608376]
[1742083416243,0.063,136.27,136.24,28.71015345]
[1742083416535,0.063,136.27,136.24,49.79608376]
[1742083416739,0.063,136.27,136.24,28.71015345]
[1742083423140,0.063,136.27,136.22,7.54606157]
[1742083423327,0.063,136.27,136.24,21.08593031]
[1742083423523,1.43910612,136.27,136.24,21.08593031]
[1742083424945,0.063,136.27,136.24,21.08593031]
[1742083426141,0.063,136.27,136.24,28.42583031]
[1742083430538,1.43907949,136.27,136.24,21.08593031]
[1742083431358,0.063,136.27,136.24,28.42583031]
[1742083434235,0.063,136.27,136.24,21.08593031]
[1742083435066,8.2344,136.25,136.23,21.08593031]
[1742083436159,8.2344,136.25,136.24,21.08593031]
[1742083436350,0.063,136.25,136.24,13.47279687]
[1742083439362,0.063,136.25,136.24,20.81269687]
[1742083440064,0.063,136.25,136.24,13.47279687]
[1742083440362,0.063,136.25,136.24,20.81269687]
[1742083443144,0.063,136.25,136.24,13.47279687]
[1742083444274,0.063,136.25,136.23,13.47279687]
[1742083444446,1.37645749,136.24,136.22,0.063]
[1742083444854,2.89525749,136.24,136.22,0.063]
[1742083445066,7.3405,136.23,136.22,0.063]
[1742083445460,13.9931,136.23,136.22,0.063]
[1742083445660,27.46589687,136.23,136.22,0.063]
[1742083445863,6.6526,136.23,136.22,0.063]
[1742083447459,27.46589687,136.23,136.22,0.063]
[1742083448360,13.9931,136.23,136.22,0.063]
[1742083450684,27.46589687,136.23,136.22,0.063]
[1742083454082,13.9931,136.23,136.22,0.063]
[1742083455283,6.6526,136.23,136.22,0.063]
[1742083458273,13.9931,136.23,136.22,0.063]
[1742083467075,6.6526,136.23,136.22,0.063]
[1742083467279,10.23545749,136.24,136.22,0.063]
[1742083468890,0.03,136.23,136.22,0.063]
[1742083470203,0.063,136.25,136.23,18.933972]
[1742083470500,0.063,136.25,136.24,13.47279687]
[1742083471000,0.063,136.25,136.24,20.81269687]
[1742083472590,0.0001,136.25,136.24,95.29535635]
[1742083477797,0.03,136.29,136.24,113.64525635]
[1742083477998,0.03,136.29,136.28,13.47279687]
[1742083478295,0.03,136.29,136.28,19.81279687]
[1742083478680,0.03,136.29,136.28,27.15059687]
[1742083481203,0.03,136.29,136.28,13.6778]
[1742083481505,0.03,136.29,136.28,27.15059687]
[1742083499615,82.2101,136.3,136.29,18.933972]
[1742083499930,82.2101,136.3,136.29,38.70676887]
[1742083500313,0.0101,136.3,136.29,38.70676887]
[1742083501615,0.0101,136.3,136.29,51.958004]
[1742083502010,0.0101,136.3,136.29,105.84919148]
[1742083502204,11.49799053,136.33,136.29,51.958004]
[1742083502408,16.58800246,136.34,136.29,51.958004]
[1742083502612,16.58800246,136.34,136.29,70.301204]
[1742083503230,16.58800246,136.34,136.33,13.47279687]
[1742083504424,17.96333989,136.34,136.31,13.47279687]
[1742083505003,82.2,136.33,136.3,13.47279687]
[1742083505202,83.57566461,136.32,136.3,13.47279687]
[1742083505408,82.2,136.32,136.3,13.47279687]
[1742083507446,82.2,136.32,136.3,20.80939687]
[1742083507804,82.2,136.32,136.3,13.47279687]
[1742083508024,82.2,136.32,136.3,20.80949687]
[1742083508919,82.2,136.32,136.3,13.47279687]
[1742083509122,82.2,136.32,136.3,20.80939687]
[1742083509626,82.2,136.32,136.3,13.47279687]
[1742083510325,82.2,136.32,136.3,20.80949687]
[1742083510528,82.2,136.32,136.3,13.47279687]
[1742083511730,82.2,136.32,136.3,20.80919687]
[1742083512112,82.2,136.32,136.31,13.47279687]
[1742083513230,82.2,136.32,136.31,20.80899687]
[1742083513706,93.69799053,136.32,136.31,20.80899687]
[1742083516430,11.49799053,136.32,136.31,93.63415635]
[1742083516828,11.49799053,136.32,136.31,39.74296887]
[1742083517614,11.49799053,136.32,136.31,93.63415635]
[1742083517817,9.053e-05,136.32,136.31,93.63415635]
[1742083518838,46.29036175,136.34,136.32,18.933972]
[1742083518839,69.40783648,136.34,136.32,18.933972]
[1742083519040,69.40783648,136.34,136.33,6.28]
[1742083519740,0.03,136.34,136.33,6.28]
[1742083523437,83.60535002,136.34,136.33,6.28]
[1742083523643,83.60535002,136.34,136.31,13.47279687]
[1742083524226,88.7039321,136.34,136.31,13.47279687]
[1742083524423,88.7039321,136.34,136.3,6.28]
[1742083524424,109.51132897,136.34,136.3,6.28]
[1742083524638,82.2,136.33,136.3,6.28]
[1742083525242,82.2,136.33,136.3,19.75279687]
[1742083526444,82.2,136.33,136.31,13.47279687]
[1742083527551,82.2,136.33,136.32,13.47279687]
[1742083528525,82.2,136.33,136.32,20.80839687]
[1742083530152,110.42624078,136.33,136.32,20.80839687]
[1742083534062,87.30341955,136.33,136.32,20.80839687]
[1742083536547,110.42624078,136.33,136.32,20.80839687]
[1742083537372,110.42624078,136.33,136.32,13.47279687]
[1742083540884,110.42624078,136.33,136.31,13.53579687]
[1742083541587,110.42624078,136.33,136.32,13.47279687]
[1742083543075,110.42624078,136.33,136.32,20.80839687]
[1742083543787,110.42624078,136.33,136.32,13.47279687]
[1742083547192,110.42624078,136.33,136.32,20.80839687]
[1742083547904,110.42624078,136.33,136.32,13.47279687]
[1742083548272,110.42624078,136.33,136.32,20.80839687]
[1742083548583,110.42624078,136.33,136.32,13.47279687]
[1742083555981,110.42624078,136.33,136.32,20.80839687]
[1742083558994,110.42624078,136.33,136.31,13.53579687]
[1742083559403,110.42624078,136.33,136.31,20.87189687]
[1742083560303,110.42624078,136.33,136.31,13.53579687]
[1742083560508,83.5754925,136.32,136.31,0.063]
[1742083560712,14.84828937,136.32,136.31,0.063]
[1742083561002,82.2,136.3,136.28,0.063]
[1742083561210,98.6503898,136.29,136.28,0.063]
[1742083561807,85.17759293,136.29,136.28,0.063]
[1742083562106,98.6503898,136.29,136.28,0.063]
[1742083562303,20.0,136.26,136.25,0.063]
[1742083562482,65.87956574,136.26,136.25,0.063]
[1742083562683,18.933972,136.25,136.22,0.063]
[1742083562893,1.37680958,136.24,136.22,0.063]
[1742083563106,13.47279687,136.23,136.22,0.063]
[1742083563693,14.84960645,136.24,136.22,0.063]
[1742083564406,22.18970645,136.24,136.22,0.063]
[1742083564591,13.47279687,136.23,136.22,0.063]
[1742083565610,14.84960645,136.24,136.22,0.063]
[1742083565817,1.37680958,136.24,136.22,0.063]
[1742083565990,14.84960645,136.24,136.22,0.063]
[1742083566511,82.2,136.23,136.22,0.063]
[1742083567484,83.57660157,136.23,136.22,0.063]
[1742083568189,82.2,136.23,136.22,0.063]
[1742083569807,82.2,136.23,136.22,13.53579687]
[1742083571117,82.2,136.23,136.22,0.063]
[1742083571893,82.2,136.23,136.22,13.53579687]
[1742083573005,82.2,136.23,136.22,0.063]
[1742083575616,82.2,136.23,136.22,13.53579687]
[1742083577820,82.2,136.23,136.22,0.063]
[1742083579806,83.57665209,136.23,136.22,0.063]
[1742083581301,82.2,136.23,136.22,0.063]
[1742083582621,82.2,136.23,136.22,13.53579687]
[1742083583034,82.2,136.23,136.22,0.063]
[1742083583926,82.2,136.23,136.22,13.53579687]
[1742083586029,82.2,136.23,136.22,20.87679687]
[1742083588431,82.2,136.23,136.22,27.15679687]
[1742083593633,82.2,136.23,136.22,0.063]
[1742083594335,104.389999,136.23,136.22,0.063]
[1742083595921,83.57670213,136.23,136.22,0.063]
[1742083597133,82.2,136.23,136.22,13.53579687]
[1742083597331,82.2,136.23,136.22,20.87679687]
[1742083599327,0.03,136.25,136.22,20.87679687]
[1742083599528,0.03,136.25,136.24,13.47279687]
[1742083602024,0.03,136.25,136.24,20.81269687]
[1742083613038,0.03,136.25,136.24,13.47279687]
[1742083613244,0.03,136.25,136.23,13.47279687]
[1742083613538,7.46473819,136.25,136.22,13.53579687]
[1742083613736,7.46473819,136.25,136.22,0.063]
[1742083615433,7.46473819,136.25,136.24,0.063]
[1742083615941,14.80413819,136.25,136.24,0.063]
[1742083616725,28.27693506,136.25,136.24,0.063]
[1742083618051,38.64964886,136.23,136.22,0.063]
[1742083618221,18.64964886,136.22,136.18,0.063]
[1742083618528,13.47279687,136.2,136.18,0.063]
[1742083618728,1.37715352,136.19,136.18,0.063]
[1742083619821,1.3770407,136.2,136.18,0.063]
[1742083622352,82.2,136.19,136.18,0.063]
[1742083624754,22.66865461,136.19,136.18,0.063]
[1742083624940,47.51640347,136.19,136.18,0.063]
[1742083625630,47.80072661,136.19,136.18,0.063]
[1742083626152,82.074,136.17,136.15,0.063]
[1742083626354,83.45147324,136.16,136.15,0.063]
[1742083627252,56.52249985,136.16,136.15,0.063]
[1742083627571,6.1981,136.12,136.08,0.03]
[1742083627746,21.07575461,136.1,136.08,0.03]
[1742083627946,1.37817157,136.09,136.08,0.03]
[1742083628260,82.2,136.09,136.08,21.10575461]
[1742083628655,1.37819947,136.1,136.08,74.47975808]
[1742083628656,82.2,136.1,136.08,74.47975808]
[1742083628861,82.2,136.1,136.09,39.72540347]
[1742083630470,82.2,136.1,136.09,47.07340347]
[1742083631170,82.2,136.1,136.09,39.72540347]
[1742083632256,82.2,136.1,136.09,21.07575461]
[1742083632452,82.2,136.1,136.08,6.33]
[1742083633467,1.37795758,136.09,136.08,0.03]
[1742083634457,1.37795758,136.09,136.08,21.10575461]
[1742083634663,1.37804161,136.11,136.08,21.10575461]
[1742083634868,1.37804161,136.11,136.1,21.07575461]
[1742083635169,82.2,136.12,136.1,21.07575461]
[1742083635372,82.2,136.11,136.1,21.07575461]
[1742083636250,82.2,136.11,136.1,27.39575461]
[1742083637674,82.2,136.11,136.1,6.32]
[1742083638253,82.2,136.11,136.1,27.39575461]
[1742083639191,82.2,136.11,136.1,21.07575461]
[1742083639366,89.5469,136.11,136.1,21.07575461]
[1742083639568,90.92481496,136.11,136.09,21.07575461]
[1742083639775,82.2,136.1,136.09,21.07575461]
[1742083640685,83.57791452,136.1,136.09,21.07575461]
[1742083640991,82.2,136.1,136.09,21.07575461]
[1742083642476,82.2,136.1,136.09,28.42375461]
[1742083643689,82.2,136.1,136.09,21.07575461]
[1742083643888,82.2,136.1,136.09,28.42375461]
[1742083644882,82.2,136.1,136.09,47.07340347]
[1742083650206,82.2,136.1,136.09,47.21556504]
[1742083650407,82.2,136.1,136.09,47.35772661]
[1742083650578,82.2,136.14,136.1,0.14216157]